Cogmind - Beta 11 X11 @@@ ROGUE MODE // 2022.03.01 @ 17:14:16 Player: Puzzlebark Result: Destroyed by DAS Turret with DAS Cannon Performance ------------- Evolutions (1) 500 Regions Visited (4) 800 Robots Destroyed (68) 340 Value Destroyed (1705) 1705 Prototype IDs (25) 500 Alien Tech Used (0) 0 Bonus (-512) -512 TOTAL SCORE: 3333 Bonus ------- High Alert Combat Kills 57 Aligned with FarCom 300 Friendly Fire -869 Cogmind --------- Core Integrity 0/400 Matter 270/300 Energy 160/160 System Corruption 0% Temperature Cool (0) Movement Flying (32) Location -9/Exiles Parts ------- > --- POWER (1) -------- Light Nuclear Core > --- PROPULSION (2) --- VTOL Module VTOL Module > --- UTILITY (4) ------ Signal Interpreter 0b10 Alert Chip EX Chip 1 EX Chip 2 > --- WEAPON (2) ------- Axe > --- INVENTORY (5) ---- VTOL Module Sensor Array AWS/Autocannon Peak State ------------ > --- POWER ------------ Light Nuclear Core > --- PROPULSION ------- VTOL Module VTOL Module > --- UTILITY ---------- Signal Interpreter 0b10 Alert Chip EX Chip 1 EX Chip 2 > --- WEAPON ----------- Axe > --- INVENTORY -------- VTOL Module Sensor Array AWS/Autocannon [Rating: 24] Favorites ----------- Power Cooled Ion Engine Engine Cooled Ion Engine Power Core Light Nuclear Core Propulsion Carbon-fiber Leg Leg Carbon-fiber Leg Flight Unit VTOL Module Utility Small Storage Unit Device Cooling System Storage Small Storage Unit Processor Signal Interpreter Hackware EX Chip 1 Protection Core Shielding Weapon Axe Energy Gun Pulse Rifle Energy Cannon Light EM Pulse Cannon Ballistic Gun Assault Rifle Launcher Grenade Launcher Slashing Weapon Axe Build | -11 -10 -9 -9 -9 ------- Run | Scr Mat Mat Min Exi Slots Evolved 2 | . . 2 . . Power . | . . . . . Propulsion . | . . . . . Utility 2 | . . 2 . . Weapon . | . . . . . Parts Attached 55 | 6 5 38 3 3 Power 6 | 1 1 3 1 . Engine 4 | 1 1 2 . . Core 2 | . . 1 1 . Reactor . | . . . . . Propulsion 14 | 2 1 9 2 . Treads . | . . . . . Leg 12 | 2 1 9 . . Wheel . | . . . . . Hover . | . . . . . Flight 2 | . . . 2 . Utility 18 | 1 1 13 . 3 Device 5 | . . 5 . . Storage 1 | 1 . . . . Processor 2 | . . 1 . 1 Hackware 2 | . . . . 2 Protection 8 | . 1 7 . . Artifact . | . . . . . Weapon 17 | 2 2 13 . . Energy Gun 5 | 1 1 3 . . Energy Cannon 5 | . . 5 . . Ballistic Gun 5 | 1 . 4 . . Ballistic Cannon . | . . . . . Launcher 1 | . 1 . . . Special Weapon . | . . . . . Impact Weapon . | . . . . . Slashing Weapon 1 | . . 1 . . Piercing Weapon . | . . . . . Special Melee Weapon . | . . . . . Unidentified Prototypes 2 | . . 2 . . Parts Lost 15 | . 3 10 2 . Power 2 | . 1 1 . . Propulsion 4 | . 1 2 1 . Utility 5 | . 1 4 . . Weapon 4 | . . 3 1 . Highest Loss Streak 4 | . 3 4 2 . To Critical Strikes . | . . . . . Average Slot Usage (%) 85 | . 89 86 76 62 Engine 10 | . 13 10 5 . Core 1 | . . . 5 11 Leg 20 | . 27 21 10 . Flight 1 | . . . 10 22 Device 6 | . . 7 11 . Storage 10 | . 14 11 5 . Processor 2 | . . 1 11 16 Protection 9 | . 4 12 . . Energy Gun 5 | . 14 4 . . Energy Cannon 4 | . . 6 4 . Ballistic Gun 2 | . 7 1 . . Launcher 1 | . 6 . . . Slashing Weapon 6 | . . 7 11 11 Naked Turns . | . . . . . Heaviest Build 31 | 13 17 31 23 8 Greatest Support 30 | 20 20 30 25 8 Greatest Overweight (x) 8 | . . 8 2 . Average Overweight (x) . | . . . . . Largest Inventory Capacity 8 | 8 8 8 8 5 Average Capacity 7 | 7 8 8 6 5 Most Carried 8 | 2 5 8 5 5 Average Carried 5 | . 3 6 4 4 Final Capacity 8 | 8 8 8 5 5 Final Carried 5 | 2 5 5 5 5 Class Distribution -------------------- 93% | Mutant 6% | Sprinter Dominant Class ---------------- Mutant | -10/Materials Mutant | -9/Materials Mutant | -9/Mines Sprinter | -9/Exiles Resources | -11 -10 -9 -9 -9 ----------- Run | Scr Mat Mat Min Exi Matter Collected 808 | 155 218 405 30 . Remotely . | . . . . . Salvage Created 2179 | . 488 1585 78 28 Parts 172 | . 34 118 9 11 Haulers Intercepted 3 | . 1 2 . . Recyclers Shooed 1 | . . 1 . . Parts Field Recycled . | . . . . . Retrieved Matter . | . . . . . Parts Self-Destructed . | . . . . . Prevented . | . . . . . Kills | -11 -10 -9 -9 -9 ------- Run | Scr Mat Mat Min Exi Combat Hostiles Destroyed 44 | . 10 30 4 . Melee 19 | . . 15 4 . Guns 17 | . 8 9 . . Cannons 2 | . . 2 . . AOE 4 | . 2 2 . . Classes Destroyed 11 | . 5 4 2 . Worker 6 | . 2 4 . . Builder 4 | . . 3 1 . Hauler 3 | . 1 2 . . Operator 6 | . 1 5 . . Watcher 5 | . 1 4 . . Swarmer 8 | . . 7 1 . Grunt 22 | . 10 12 . . Duelist 1 | . . 1 . . Sentry 10 | . . 10 . . Demolisher 2 | . . . 2 . Assembled 1 | . . . 1 . Best Kill Streak 5 | . 5 5 2 . Combat Bots Only 4 | . 3 4 2 . Max Kills in Single Turn 3 | . 3 2 1 1 Gunslinging . | . . . . . Exploded 1 | . 1 1 . . Melee 1 | . . 1 1 . Uniques/NPCs Destroyed 1 | . . . . 1 EX-BIN (-9/Exiles) Combat | -11 -10 -9 -9 -9 -------- Run | Scr Mat Mat Min Exi Damage Taken 2672 | . 581 1687 300 104 Core 634 | . 190 271 94 79 Absorbed by Shields . | . . . . . Redirected to Shielding 41 | . . 41 . . Core Remaining (%) 62 | 100 24 . . . Volleys Fired 108 | . 44 64 . . Largest 2 | . 2 2 . . Hottest 70 | . 60 70 . . Shots Fired 132 | . 65 67 . . Gun 101 | . 61 40 . . Cannon 25 | . . 25 . . Launcher 6 | . 4 2 . . Special . | . . . . . Kinetic 31 | . 21 10 . . Thermal 48 | . 29 19 . . Explosive 6 | . 4 2 . . Electromagnetic 47 | . 11 36 . . Robot Hit Streak 17 | . 17 10 . . Robot Miss Streak 9 | . 3 9 . . Penetration Max . | . . . . . Secondary Targets . | . . . . . Shots Hit Robots 164 | . 50 107 6 1 Core Hits 85 | . 30 50 4 1 Critical Kills . | . . . . . Critical Parts Destroyed . | . . . . . Critical Strikes 3 | . . 3 . . Sever 3 | . . 3 . . Melee Attacks 81 | . . 73 7 1 Impact . | . . . . . Slashing 81 | . . 73 7 1 Piercing . | . . . . . Sneak Attacks 19 | . . 16 2 1 Combat Hostiles 1 | . . . 1 . Follow-up Attacks . | . . . . . Damage Inflicted 5826 | . 947 4363 401 115 Guns 957 | . 587 370 . . Cannons 553 | . . 553 . . Explosions 510 | . 335 175 . . Melee 3781 | . . 3265 401 115 Ramming 25 | . 25 . . . Kinetic 327 | . 217 110 . . Thermal 634 | . 361 273 . . Explosive 356 | . 260 96 . . Electromagnetic 703 | . 84 619 . . Impact . | . . . . . Slashing 3781 | . . 3265 401 115 Piercing . | . . . . . Highest Corruption . | . . . . . Average Corruption . | . . . . . Corruption Purged . | . . . . . Corruption Blocked . | . . . . . Overload Shots . | . . . . . Overflow Damage 777 | . 10 753 14 . Projectiles 10 | . . 10 . . Explosions 10 | . 10 . . . Melee 757 | . . 743 14 . Knockbacks . | . . . . . Impact . | . . . . . Kinetic . | . . . . . Secondary . | . . . . . Self-Inflicted Damage 47 | . 47 . . . Shots 2 | . 2 . . . Rammed . | . . . . . Targets Rammed 13 | . 13 . . . Kicked 13 | . 13 . . . Crushed . | . . . . . Highest Temperature 205 | . 105 205 . . Average Temperature 44 | . 37 51 . . Received Heat Transfer 858 | . 300 552 6 . Siege Activations . | . . . . . Robots Corrupted 2 | . . 2 . . Combat Hostiles 2 | . . 2 . . Parts Fried 6 | . . 6 . . Impact Corruptions . | . . . . . Robots Melted . | . . . . . Combat Hostiles . | . . . . . Parts Melted . | . . . . . Heat Transferred 1088 | . 675 413 . . Parts Sabotaged . | . . . . . Parts Stolen . | . . . . . Parts Stripped . | . . . . . Power Chain Reactions 1 | . . 1 . . Missiles Intercepted . | . . . . . Alert | -11 -10 -9 -9 -9 ------- Run | Scr Mat Mat Min Exi Peak Influence 542 | . 319 542 326 . Initial 211 | . . 95 211 . Average 255 | . 157 291 241 . Maximum Alert Level 2 | . 1 2 1 . Low Security (%) 37 | 100 59 34 8 . Level 1 43 | . 40 37 91 . Level 2 19 | . . 28 . . Level 3 . | . . . . . Level 4 . | . . . . . Level 5 . | . . . . . High Security . | . . . . . Max Security . | . . . . . Squads Dispatched 8 | . 1 6 1 . Investigation 3 | . . 2 1 . Extermination . | . . . . . Reinforcement 5 | . 1 4 . . Assault . | . . . . . Garrison . | . . . . . Intercept . | . . . . . Searches Triggered . | . . . . . Construction Impeded . | . . . . . Haulers Reinforced . | . . . . . Active Scanning Responses . | . . . . . Cargo Convoy Interrupts . | . . . . . Stealth | -11 -10 -9 -9 -9 --------- Run | Scr Mat Mat Min Exi Distress Signals . | . . . . . Communications Jammed . | . . . . . Distress Signals . | . . . . . Times Spotted 85 | . 21 49 8 7 Peak Tracking Total 11 | . 5 5 3 11 Tactical Retreats 7 | . 1 4 2 . Traps | -11 -10 -9 -9 -9 ------- Run | Scr Mat Mat Min Exi Traps Triggered 2 | . . 2 . . Indirectly . | . . . . . Trap Hack Attempts . | . . . . . Triggered . | . . . . . Disarmed . | . . . . . Reprogrammed . | . . . . . Reused . | . . . . . Traps Extracted . | . . . . . Installed . | . . . . . Triggered . | . . . . . Machines | -11 -10 -9 -9 -9 ---------- Run | Scr Mat Mat Min Exi Machines Disabled 3 | . 3 . . . Max in Single Turn 2 | . 2 . . . Machines Sabotaged . | . . . . . Garrisons Compromised . | . . . . . Overloaded Fab Kills . | . . . . . Hacking | -11 -10 -9 -9 -9 --------- Run | Scr Mat Mat Min Exi Machines Accessed 18 | . 7 9 1 1 Terminals 15 | . 7 8 . . Fabricators . | . . . . . Repair Stations . | . . . . . Recycling Units . | . . . . . Scanalyzers 1 | . . 1 . . Garrison Access . | . . . . . Total Hacks 54 | . 23 29 1 1 Successful 36 | . 12 22 1 1 Failed 18 | . 11 7 . . Catastrophic . | . . . . . Database Lockouts . | . . . . . Manual 37 | . 15 21 . 1 Terminals 50 | . 23 27 . . Fabricators . | . . . . . Repair Stations . | . . . . . Recycling Units . | . . . . . Scanalyzers 2 | . . 2 . . Garrison Access . | . . . . . Terminal Hacks 19 | . 7 10 1 1 Robot Analysis 4 | . 2 2 . . Open Door 1 | . . . 1 . Branch Access Points 1 | . . 1 . . Terminal Index 2 | . 1 1 . . Alert Level 1 | . 1 . . . Unreport Threat 1 | . 1 . . . Locate Traps 2 | . 1 1 . . Recall Investigation 1 | . . 1 . . Recall Reinforcements 1 | . . 1 . . Hauler Manifests 1 | . . 1 . . Registered Components 2 | . 1 1 . . Zone Layout 1 | . . 1 . . EX-Prototype ID Bank 1 | . . . . 1 Fabricator Hacks . | . . . . . Repair Station Hacks . | . . . . . Recycling Unit Hacks . | . . . . . Scanalyzer 2 | . . 2 . . Insert Component 1 | . . 1 . . Analyze 1 | . . 1 . . Garrison Access Hacks . | . . . . . Unauthorized Hacks 15 | . 5 10 . . Terminals 15 | . 5 10 . . Track 5 | . 1 4 . . Assimilate 3 | . 1 2 . . Botnet 4 | . 2 2 . . Operators 2 | . 1 1 . . Search 1 | . . 1 . . Fabricators . | . . . . . Repair Stations . | . . . . . Recycling Units . | . . . . . Scanalyzers . | . . . . . Garrison Access . | . . . . . Data Cores Recovered . | . . . . . Used . | . . . . . Hacking Detections 14 | . 6 8 . . Full Trace Events 1 | . . 1 . . Feedback Events . | . . . . . Feedback Blocked . | . . . . . Robot Schematics Acquired . | . . . . . Robots Built . | . . . . . Authchips . | . . . . . Time . | . . . . . Total Robot Build Rating . | . . . . . Part Schematics Acquired 1 | . . 1 . . Parts Built . | . . . . . Authchips . | . . . . . Time . | . . . . . Total Part Build Rating . | . . . . . Parts Repaired . | . . . . . Time . | . . . . . Parts Recycled . | . . . . . Recycled Matter . | . . . . . Retrieved Matter . | . . . . . Retrieved Components . | . . . . . Parts Scanalyzed 1 | . . 1 . . Part Schematics Acquired 1 | . . 1 . . Parts Damaged . | . . . . . Bothacking | -11 -10 -9 -9 -9 ------------ Run | Scr Mat Mat Min Exi Used RIF Installer . | . . . . . Robots Hacked . | . . . . . Non-combat . | . . . . . Combat . | . . . . . Robot Hacks Applied . | . . . . . Relay Couplers Released . | . . . . . Fabnet Peak Effective % . | . . . . . Robots Rewired . | . . . . . Allies Hacked . | . . . . . Hacks Repelled . | . . . . . Allies | -11 -10 -9 -9 -9 -------- Run | Scr Mat Mat Min Exi Total Allies 2 | . 1 1 . . Largest Group 1 | . 1 1 . . Highest-Rated Group 10 | . 10 10 . . Highest-Rated Ally 10 | . 10 10 . . Total Orders . | . . . . . Ally Attacks . | . . . . . Total Damage . | . . . . . Kills . | . . . . . Allies Corrupted . | . . . . . Allies Melted . | . . . . . Intel | -11 -10 -9 -9 -9 ------- Run | Scr Mat Mat Min Exi Robot Analysis Total 4 | . 2 2 . . Derelict Logs Recovered 2 | . . . 2 . Drone Launches . | . . . . . Drone Recoveries . | . . . . . Exploration | -11 -10 -9 -9 -9 ------------- Run | Scr Mat Mat Min Exi Turns Passed 3969 | 60 737 2631 437 104 Spaces Moved 2878 | 44 475 1511 565 283 Core 8 | 4 . 4 . . Treads . | . . . . . Legs 2122 | 40 475 1507 100 . Wheels . | . . . . . Hover . | . . . . . Flight 748 | . . . 465 283 Fastest Speed 32 | 50 120 120 32 32 Average Speed 97 | 113 120 120 49 32 Slowest Speed 450 | 120 120 450 260 32 Overloaded Moves . | . . . . . Propulsion Burnouts . | . . . . . Robots Hopped 2 | . . . 2 . Cave-ins Triggered . | . . . . . Exploration Rate (%) 58 | 3 62 94 86 46 Regions Visited 4 Branch Regions 2 Pre-discovered Areas 1 | . . . 1 . Known Exits Taken 2 | . . 1 1 . Unknown Exits Taken 2 | 1 1 . . . Scrap Searched 1 | . . . 1 . Spaces Dug 7 | . . 7 . . Terrain Destroyed 82 | . 58 24 . . Melee 7 | . . 7 . . Projectile . | . . . . . AOE 75 | . 58 17 . . Terrain Rammed . | . . . . . Walls Destroyed . | . . . . . Machines Disabled . | . . . . . Actions | -11 -10 -9 -9 -9 --------- Run | Scr Mat Mat Min Exi Total 3745 | 51 572 2120 707 295 Wait 557 | . 31 397 129 . Move 2870 | 43 474 1510 560 283 Hop 2 | . . . 2 . Pick Up 24 | 2 4 14 1 3 Fast Attach 37 | 6 3 25 . 3 Attach 13 | . . 11 2 . Detach 3 | . . 1 2 . Swap 5 | . 2 2 1 . Drop 32 | . 1 23 3 5 Fire 108 | . 44 64 . . Melee 81 | . . 73 7 1 Ram . | . . . . . Kick 13 | . 13 . . . Crush . | . . . . . Escape Stasis . | . . . . . Rewire . | . . . . . Trap . | . . . . . Miscellaneous . | . . . . . Route ------- -11/Scrapyard -10/Materials -9/Materials (discovered 4 exits: [*Mat x3] / *Min) -9/Mines (discovered 2 exits: [*Mat] / *Exi) -9/Exiles History --------- Turn | Location | Event 5 | -11/Scrapyard | Discovered new exit (range 16) 61 | -11/Scrapyard | Entered Materials 307 | -10/Materials | Build established: Mutant 432 | -10/Materials | Core integrity fell below 50% 542 | -10/Materials | Lost 3 parts (1p1n1u) 763 | -10/Materials | Discovered new exit (range 5) 798 | -10/Materials | Entered another Materials area 798 | -9/Materials | Evolved 2 slots: Utility x2 992 | -9/Materials | Lost 4 parts (1p1n2w) 1402 | -9/Materials | Discovered new exit (range 15) 1748 | -9/Materials | Identified exit to Mines 2413 | -9/Materials | Discovered new exit (range 12) 2655 | -9/Materials | Core integrity fell below 50% 2854 | -9/Materials | Lost 3 parts (1n2u) 2867 | -9/Materials | Discovered new exit (range 16) 3429 | -9/Materials | Entered Mines 3444 | -9/Mines | Learned location of Storage (-8) 3595 | -9/Mines | Assembled infested the area 3616 | -9/Mines | Core integrity fell below 20% 3662 | -9/Mines | Discovered new exit (range 7) 3784 | -9/Mines | Learned location of 1 exit from Materials 3785 | -9/Mines | Learned location of 1 exit from Materials 3847 | -9/Mines | Met a Derelict shopkeep closing up shop 3865 | -9/Mines | Discovered new exit (range 5) 3866 | -9/Mines | Identified exit to Exiles 3866 | -9/Mines | Entered Exiles 3875 | -9/Exiles | Met 8R-AWN 3880 | -9/Exiles | Met EX-HEX 3889 | -9/Exiles | Met EX-BIN 3910 | -9/Exiles | Aligned with FarCom system 3911 | -9/Exiles | Given EX-Vault access code 3918 | -9/Exiles | Opened EX-Vault 3921 | -9/Exiles | Found 0b10 Alert Chip 3929 | -9/Exiles | Warned to stay clear of 0b10 Research branches 3941 | -9/Exiles | Found AWS/Autocannon 3957 | -9/Exiles | Destroyed EX-BIN 3958 | -9/Exiles | Attacked by the Exiles 3970 | -9/Exiles | Destroyed by DAS Turret with DAS Cannon Last Messages --------------- 03936_ Dropped Cooling System. 03939_ Dropped Adv. ECM Suite. 03939_ Dropped Sensor Array. 03941_ Acquired AWS/Autocannon. 03942_ Dropped VTOL Module. 03944_ Acquired Adv. ECM Suite. 03945_ Dropped Adv. ECM Suite. 03946_ Acquired Sensor Array. EX-BIN: And don't even think about spreading that code around. We're gonna change it right after you leave. Most certainly not to something like 1234 which I did last time as a little joke and some thief managed to sneak in here and steal a few of HEX's prototypes. 03957_ Sneak attack on EX-BIN. 03957_ EX-BIN: "You can't kill me, my evil twin will get revenge!" 03957_ EX-BIN destroyed. 03958_ EXILES: Hostile robot within lab perimeter. Defensive protocols time, folks! 03960_ Acquired EX Chip 1. 03962_ Acquired EX Chip 2. 03967_ Machine disabled. Map ----- +----------------------------------------------------+ | ???????????????????????? ??????# #?#"""""""#?? | | ???????????????????????????????# #?#"""""""#?? | | ??????????????????????????????## ###"" """"#?? | | ??????????????????????????????#" """"#?? | | ??????????????????????????????#" !!"""#?? | | ??????????????????????????????#" !*"""#?? | | ??????????????????????????????#" %"""#?? | | ??????????????????????????????#" !!!"""#?? | | ??????????????????????????????#" !!"""##? | | ??????????????????????????????## """""? | | ???????????????????????????????# """##? | | ???????????????????????????????#" "X" """""? | | ???????????????????????????????#" """ #?? | | ???????????????????????????????#" """""""""#?? | | ??????????????????????????????##" ###########?? | | ?????????????????# ??????????##"" #???????????? | | ???????????????#?# ##??######"" #???????????? | | ?????????????###X# #"###""""""" ##??????????? | | ???????????? """""" " "" ##???####### | | ???????????? "" """ #####"""""" | | ???????????? " " " """ | | ??????????? a "" | | ??????????? a " | | ?????????? a | | ?????????? | | ??????????" @ a | | ???????????"" % """""" | | ??????????" ######""" | | ??????????? ""##????#####""" | | ???????????" """##?????????##""" | | ???????????? """##???????????#"""" | | ???????????? ""?????????????#"" | | ???????????? #??????????????""" | | ????????????? ??????????????? | | ????????????? ????????????????? | | ?????????????? ?????????????????? | | ?????????????? ???????????????????? | | ???????????????? ?????????????????????? " | | ????????????????????????????????????????? """ | | ?????????????????????????????????????????? " ""#" | | ???????????????????????????????????????????" ???## | | ?????????????????????????????????????????????????# | | ?????????????????????????????????????????????????? | | ?????????????????????????????????????????????????? | | ?????????????????????????????????????????????????? | | ?????????????????????????????????????????????????? | | ?????????????????????????????????????????????????? | | ?????????????????????????????????????????????????? | | ?????????????????????????????????????????????????? | | ?????????????????????????????????????????????????? | +----------------------------------------------------+ Best States ------------- Heat Dissipation 64 Energy Generation 14 Energy Capacity 280 Matter Stores 300 Matter Capacity 300 Sight Range 16 Robot Scan Range 14 Terrain Scan Density 10 Armor Coverage 225 Core Shielding 20 Evasion (%) 63 Offensive Hacking 7 Defensive Hacking 7 Item Schematics ----------------- VTOL Module | -9/Materials | Scanalyzed Robot Schematics ------------------ None Fabricated ------------ Nothing Alien Tech Used ----------------- None Achievements -------------- None Challenges ------------ None Game ------ Seed AssemblyIntegratedWand Manual? 0 Play Time 00:43:06 Cumulative 188.3 hours Start 2022.03.01 @ 16:06:41 End 2022.03.01 @ 17:14:16 Sessions 1 Manual Loads 0 Difficulty Rogue Special Mode None Game No. 177 Rogue 116 Adventurer 61 Explorer 0 Win Type - Total 9 Types 7/0/2/0/0/0/0/0/0 Lore% 50 Gallery% 70 Achievement% 60 Wizard Run 0 Options --------- ASCII 0 Keyboard 0 Movement Mouse Keybinds 0 Fullscreen 2 Font 24/Smallcaps Map View 76x50 Tactical HUD 1 Map Filters NONE Filters NONE Steam 1 RUN: a49282e6-4cb9-4d8e-a188-f17e401b3188